fUSD/lending_fUSD_20251009
["ID","MTS","AMOUNT","RATE_DAILY","PERIOD"]
[390115444,1759968548131,-224.18,0.00019704,2]
[390115445,1759968548150,-195.0,0.00020947,2]
[390115446,1759968548170,-300.0,0.00021674,2]
[390115447,1759968548189,-195.0,0.00021674,2]
[390115448,1759968548208,-150.0,0.00021674,2]
[390115449,1759968548228,-195.0,0.00021694,2]
[390115450,1759968548257,-290.85125464,0.0002219,2]
[390115451,1759968548278,-58.53376848,0.00022192,2]
[390115452,1759968555586,26692.101186,7.945e-05,2]
[390115460,1759968631517,-91.46623152,0.00022192,2]
[390115461,1759968631527,-150.0,0.00022192,2]
[390115462,1759968631536,-345.81470605,0.00023599,2]
[390115463,1759968631546,-958.03681441,0.00023723,2]
[390115464,1759968631557,-869.17495579,0.00023737,3]
[390115465,1759968631567,-517.21,0.0002378,2]
[390115466,1759968631581,-188.0,0.00023808,2]
[390115467,1759968631590,-166.0,0.0002382,2]
[390115468,1759968631600,-1000.0,0.00023837,2]
[390115469,1759968631609,-165.0,0.00023861,2]
[390115470,1759968631618,-1320.13,0.00024131,2]
[390115471,1759968631627,-682.40081086,0.00024392,2]
[390115472,1759968631637,-217.21298574,0.000244,2]
[390115473,1759968631647,-152.52,0.000244,2]
[390115474,1759968631657,-1223.1499996,0.0002441,2]
[390115475,1759968631666,-203.38446236,0.00024443,2]
[390115476,1759968631677,-500.0,0.00024443,2]
[390115477,1759968631688,-151.0,0.00024443,2]
[390115478,1759968631698,-151.0,0.00024443,2]
[390115479,1759968631708,-151.0,0.00024443,2]
[390115480,1759968631717,-151.0,0.00024443,2]
[390115481,1759968631726,-151.0,0.00024443,2]
[390115482,1759968631736,-151.0,0.00024443,2]
[390115483,1759968631746,-151.0,0.00024443,2]
[390115484,1759968631756,-151.0,0.00024443,2]
[390115485,1759968631766,-151.0,0.00024443,2]
[390115486,1759968631776,-514.89,0.00024454,2]
[390115487,1759968631785,-1310.0,0.00024458,2]
[390115488,1759968631794,-1319.32,0.00024458,2]
[390115489,1759968631803,-530.34,0.0002449,2]
[390115490,1759968631814,-1297.6,0.00024515,2]
[390115491,1759968631823,-1306.83,0.00024515,2]
[390115492,1759968631834,-217.21298574,0.000246,2]
[390115493,1759968631843,-300.0,0.000246,2]
[390115494,1759968631853,-4532.78742582,0.00024616,2]
[390115495,1759968631862,-960.65,0.00024658,2]
[390115496,1759968631872,-5000.0,0.00024689,2]
[390115497,1759968631882,-666.0,0.0002481,3]
[390115498,1759968631891,-162.79,0.00024843,2]
[390115499,1759968631901,-204.11,0.00024871,30]
[390115500,1759968631910,-217.21298574,0.000249,2]
[390115501,1759968631920,-217.21298574,0.000251,2]
[390115502,1759968631930,-722.92,0.00025243,2]
[390115503,1759968631939,-1298.117,0.00025393,10]
[390115504,1759968631949,-217.21298574,0.000254,2]
[390115507,1759968631958,-22663.93712913,0.0002555,3]
[390115509,1759968631967,-231.28369723,0.00025579,2]
[390115511,1759968631977,-151.0,0.00025579,2]
[390115513,1759968631986,-601.3376128,0.00025579,2]
[390115515,1759968631996,-960.65,0.00025582,2]
[390115518,1759968632006,-167.64320546,0.00026026,2]
[390115521,1759968632016,-162.69762998,0.00026026,2]
[390115522,1759968632026,-520.43771095,0.00026026,2]
[390115523,1759968632035,-2460.0,0.00026027,7]
[390115524,1759968632045,-205.52995275,0.00026123,2]
[390115525,1759968632054,-151.0,0.00026127,2]
[390115526,1759968632064,-342.96,0.00026247,2]
[390115527,1759968632073,-4118.0,0.00026359,2]
[390115528,1759968632083,-1181.0,0.00026359,2]
[390115529,1759968632092,-807.87,0.00026384,2]
[390115530,1759968632101,-807.87,0.00026384,2]
[390115531,1759968632111,-807.87,0.00026384,2]
[390115532,1759968632120,-807.87,0.00026384,2]
[390115533,1759968632130,-36262.29940661,0.00026408,5]
[390115534,1759968632139,-960.65,0.00026507,2]
[390115535,1759968632149,-1993.77492473,0.0002663,2]
[390115536,1759968632159,-151.0,0.00026675,2]
[390115537,1759968632168,-247.29193922,0.00026693,2]
[390115538,1759968632177,-1.12724088,0.00026693,2]
[390115539,1759968632189,-266.92376967,0.00026693,2]
[390115540,1759968632204,-231.94898945,0.00026693,2]
[390115541,1759968632214,-408.06812619,0.00026693,2]
[390115542,1759968632225,-91.93187381,0.00026693,2]
[390115543,1759968632235,-500.0,0.00026693,2]
[390115544,1759968632245,-192.19,0.00026693,2]
[390115545,1759968632254,-500.0,0.00026693,2]
[390115546,1759968632263,-500.0,0.00026693,2]
[390115547,1759968632273,-500.0,0.00026693,2]
[390115548,1759968632282,-500.0,0.00026693,2]
[390115549,1759968632292,-500.0,0.00026693,2]
[390115550,1759968632302,-500.0,0.00026693,2]
[390115551,1759968632311,-500.0,0.00026693,2]
[390115552,1759968632322,-235.87812623,0.00026693,2]
[390115553,1759968632335,-264.12187377,0.00026693,2]
[390115554,1759968632344,-504.34083923,0.00026693,2]
[390115555,1759968632354,-500.0,0.00026693,2]
[390115556,1759968632364,-500.0,0.00026693,2]
[390115557,1759968632374,-500.0,0.00026693,2]
[390115558,1759968632383,-500.0,0.00026693,2]
[390115559,1759968632394,-500.0,0.00026693,2]
[390115560,1759968632404,-500.0,0.00026693,2]
[390115561,1759968632414,-500.0,0.00026693,2]
[390115562,1759968632423,-169.67872808,0.00026693,2]
[390115563,1759968632433,-500.0,0.00026693,2]
[390115564,1759968632442,-500.0,0.00026693,2]
[390115565,1759968632452,-500.0,0.00026693,2]
[390115566,1759968632461,-1083.22,0.00026693,2]
[390115567,1759968632471,-500.0,0.00026693,2]
[390115568,1759968632483,-561.15,0.00026693,2]
[390115569,1759968632494,-500.4985,0.00026693,2]
[390115570,1759968632503,-500.0,0.00026693,2]
[390115571,1759968632513,-951.46,0.00026693,2]
[390115572,1759968632522,-500.0,0.00026693,2]
[390115573,1759968632533,-500.0,0.00026693,2]
[390115574,1759968632542,-500.0,0.00026693,2]
[390115575,1759968632552,-527.06,0.00026693,2]
[390115576,1759968632562,-5473.61765202,0.00026728,2]
[390115577,1759968632572,-12795.10936804,0.00026749,2]
[390115578,1759968632582,-500.0,0.0002678,2]
[390115579,1759968632592,-500.0,0.0002678,2]
[390115580,1759968632602,-500.0,0.0002678,2]
[390115581,1759968632612,-500.0,0.0002678,2]
[390115582,1759968632622,-501.33,0.0002678,2]
[390115583,1759968632631,-500.0,0.0002678,2]
[390115584,1759968632641,-524.33,0.0002678,2]
[390115585,1759968632651,-500.0,0.0002678,2]
[390115586,1759968632660,-281.98,0.0002678,2]
[390115587,1759968632670,-500.0,0.0002678,2]
[390115588,1759968632679,-500.0,0.0002678,2]
[390115589,1759968632688,-500.0,0.0002678,2]
[390115590,1759968632697,-500.0,0.0002678,2]
[390115591,1759968632707,-413.78,0.0002678,2]
[390115592,1759968632716,-500.0,0.0002678,2]
[390115593,1759968632725,-500.0,0.0002678,2]
[390115594,1759968632735,-500.0,0.0002678,2]
[390115595,1759968632744,-500.0,0.0002678,2]
[390115596,1759968632753,-500.0,0.0002678,2]
[390115597,1759968632762,-500.0,0.0002678,2]
[390115598,1759968632772,-500.0,0.0002678,2]
[390115599,1759968632781,-500.0,0.0002678,2]
[390115600,1759968632791,-500.0,0.0002678,2]
[390115601,1759968632800,-500.0,0.0002678,2]
[390115602,1759968632809,-500.0,0.0002678,2]
[390115603,1759968632819,-200.0,0.0002679,2]
[390115604,1759968632828,-500.0,0.00026792,2]
[390115605,1759968632837,-2051.5894586,0.00026849,2]
[390115606,1759968632847,-33212.78783752,0.00026849,2]
[390115607,1759968632858,-2482.87171954,0.00026849,2]
[390115608,1759968632869,-7469.03096544,0.00026849,2]
[390115609,1759968632879,-7947.3234986,0.00026849,2]
[390115610,1759968632887,-1269.5068409,0.00026849,2]
[390115611,1759968632896,-531.07,0.00026864,2]
[390115612,1759968632905,-200.0,0.00026865,2]
[390115613,1759968632914,-321.62236981,0.00026865,2]
[390115614,1759968632924,-151.0,0.00026865,2]
[390115615,1759968632933,-1421.17206,0.00026865,2]
[390115616,1759968632942,-152.52704277,0.00026865,2]
[390115617,1759968632950,-200.0,0.00026865,2]
[390115618,1759968632959,-2500.0,0.00026867,2]
[390115619,1759968632968,-150.0,0.0002689,2]
[390115620,1759968632977,-200.0,0.0002689,2]
[390115621,1759968632986,-150.0,0.0002689,2]
[390115622,1759968632996,-150.0,0.0002689,2]
[390115623,1759968633005,-150.0,0.0002689,2]
[390115624,1759968633014,-150.0,0.0002689,2]
[390115625,1759968633024,-150.0,0.0002689,2]
[390115626,1759968633033,-200.0,0.0002689,2]
[390115627,1759968633042,-150.0,0.0002689,2]
[390115628,1759968633051,-150.0,0.0002689,2]
[390115629,1759968633060,-150.0,0.0002689,2]
[390115630,1759968633069,-200.0,0.0002689,2]
[390115631,1759968633078,-150.0,0.0002689,2]
[390115632,1759968633088,-150.0,0.0002689,2]
[390115633,1759968633097,-150.0,0.0002689,2]
[390115634,1759968633106,-104.61042248,0.0002689,2]
[390115635,1759968637398,-364.30639767,0.00024809,2]
[390115636,1759968637408,-45.38957752,0.0002689,2]
[390115637,1759968637417,-500.0,0.0002689,2]
[390115638,1759968637427,-244.97799995,0.0002689,2]
[390115639,1759968637437,-500.0,0.0002689,2]
[390115640,1759968637446,-250.0,0.0002689,2]
[390115641,1759968637455,-500.0,0.0002689,2]
[390115642,1759968637465,-150.0,0.0002689,2]
[390115643,1759968637474,-242.0755576,0.0002689,2]
[390115644,1759968637488,-150.0,0.0002689,2]
[390115645,1759968637498,-150.0,0.0002689,2]
[390115646,1759968637507,-150.0,0.0002689,2]
[390115647,1759968637516,-150.0,0.0002689,2]
[390115648,1759968637527,-150.0,0.0002689,2]
[390115649,1759968637537,-150.0,0.0002689,2]
[390115650,1759968637546,-150.0,0.0002689,2]
[390115651,1759968637557,-200.0,0.0002689,2]
[390115652,1759968637567,-150.0,0.0002689,2]
[390115653,1759968637576,-150.0,0.0002689,2]
[390115654,1759968637586,-250.0,0.0002689,2]
[390115655,1759968637596,-214.41491321,0.0002689,2]
[390115656,1759968637606,-214.41491321,0.0002689,2]
[390115657,1759968637615,-600.0,0.000269,9]
[390115658,1759968637625,-1425.0,0.00026932,2]
[390115659,1759968637635,-1693.76,0.00026944,2]
[390115660,1759968637644,-18.95149107,0.00026948,2]
[390115661,1759968637656,-220.88970296,0.00026948,2]
[390115662,1759968637666,-1319.52598776,0.00026954,2]
[390115663,1759968637678,-480.76864813,0.00026954,2]
[390116137,1759968642676,-2543.0,0.00026836,2]
[390116139,1759968642686,-169.90500968,0.00026952,2]
[390116141,1759968642695,-3199.70536411,0.00026954,2]
[390116143,1759968642705,-500.0,0.00026967,2]
[390116145,1759968642714,-500.0,0.00026967,2]
[390116147,1759968642723,-500.0,0.00026967,2]
[390116149,1759968642732,-500.0,0.00026967,2]
[390116151,1759968642742,-222.0,0.00026967,2]
[390116153,1759968642751,-609.21,0.00026967,2]
[390116155,1759968642761,-280.10567296,0.00026967,2]
[390116157,1759968642771,-500.0,0.00026967,2]
[390116159,1759968642780,-500.0,0.00026967,2]
[390116161,1759968642789,-1083.22,0.00026967,2]
[390116164,1759968642799,-383.56,0.00026967,2]
[390116166,1759968642808,-951.46,0.00026967,2]
[390116167,1759968642818,-500.0,0.00026967,2]
[390116169,1759968642827,-527.06,0.00026967,2]
[390116171,1759968642836,-500.0,0.00026979,2]
[390116173,1759968642846,-500.0,0.00026979,2]
[390116175,1759968642856,-14285.77395325,0.0002698,6]
[390116178,1759968642868,-300.81897825,0.0002698,6]
[390116180,1759968642879,-332.90216995,0.0002698,6]
[390116183,1759968642897,-4936.0,0.0002698,6]
[390116434,1759968645512,-214.4149132,0.00026967,2]
[390116436,1759968645522,-1280.93608446,0.0002698,6]
[390116438,1759968645534,-444.58999998,0.0002698,6]
[390116458,1759968645722,-1896.86533,0.0002698,6]
[390116471,1759968645887,-536.90174,0.0002698,6]
[390118366,1759968665358,1789.1066033,0.00026912,120]
[390119518,1759968725625,2127.70622262,0.00027715,120]
[390119524,1759968739707,500.44148175,0.00028767,120]
[390119527,1759968782124,2500.0,0.00027715,120]
[390119528,1759968782231,2500.0,0.00025196,120]
[390119529,1759968782337,1422.80999364,0.00025485,120]
[390119596,1759969271109,4000.0,0.00028767,120]
[390119604,1759969507295,22509.548814,0.00015,2]
[390119605,1759969507322,513550.82827251,0.00015,2]
[390119609,1759969605977,-153.68385818,0.00018,2]
[390119610,1759969615781,4153.1450187,0.000162,5]
[390119614,1759969671201,615.93,0.00013699,2]
[390119615,1759969673276,28381.14473801,0.00015,2]
[390119616,1759969697366,153.01,0.00012463,2]
[390119625,1759969712970,444.77188462,0.00015807,2]
[390119626,1759969759145,1904.78222667,0.00028767,120]
[390119639,1759969799822,4252.6207369,0.0002876,120]
[390119659,1759969831547,-696.16346476,0.00017999,2]
[390119661,1759969831559,-503.83653524,0.00017999,2]
[390119663,1759969831568,-150.0,0.00017999,2]
[390119664,1759969831578,-733.37004298,0.00018,2]
[390119668,1759969831659,-17064.40111683,0.00018,2]
[390119669,1759969831669,-1680.0,0.00019735,2]
[390119670,1759969831679,-250.0,0.00019799,2]
[390119671,1759969831689,-2000.0,0.000198,2]
[390119672,1759969831700,-615.93,0.00020187,2]
[390119673,1759969831711,-2351.0,0.00021639,2]
[390119674,1759969831722,-179.65757404,0.00022008,2]
[390119675,1759969831731,-151.52760972,0.00022108,2]
[390119676,1759969831742,-953.504098,0.00022191,2]
[390119677,1759969831752,-708.866839,0.00022191,2]
[390119678,1759969831762,-953.504098,0.00022438,2]
[390119679,1759969831771,-708.866839,0.00022438,2]
[390119680,1759969831782,-159.426704,0.00022438,2]
[390119681,1759969831792,-368.63154205,0.00022684,2]
[390119682,1759969831802,-953.504098,0.00022685,2]
[390119683,1759969831812,-708.866839,0.00022685,2]
[390119684,1759969831822,-953.504098,0.00022931,2]
[390119685,1759969831832,-708.866839,0.00022931,2]
[390119686,1759969831841,-159.426704,0.00022931,2]
[390119687,1759969831851,-953.504098,0.00023178,2]
[390119688,1759969831861,-187.335962,0.00023178,2]
[390119689,1759969831871,-708.866839,0.00023178,2]
[390119690,1759969831880,-247.0,0.00023196,2]
[390119691,1759969831890,-953.504098,0.00023424,2]
[390119693,1759969831900,-708.866839,0.00023424,2]
[390119696,1759969831911,-159.426704,0.00023424,2]
[390119697,1759969831924,-242.0,0.00023543,2]
[390119699,1759969831933,-915.0,0.0002367,2]
[390119701,1759969831943,-953.504098,0.00023671,2]
[390119704,1759969831955,-172.459345,0.00023671,2]
[390119706,1759969831965,-708.866839,0.00023671,2]
[390119708,1759969831975,-252.0,0.00023727,2]
[390119710,1759969831986,-953.504098,0.00023918,2]
[390119712,1759969831998,-708.866839,0.00023918,2]
[390119714,1759969832007,-159.426704,0.00023918,2]
[390119715,1759969832016,-7136.06366812,0.00024,2]
[390119717,1759969832025,-953.504098,0.00024164,2]
[390119720,1759969832035,-187.335962,0.00024164,2]
[390119722,1759969832044,-708.866839,0.00024164,2]
[390119724,1759969832054,-330.89459812,0.00024265,2]
[390119726,1759969832063,-160.0,0.00024286,2]
[390119727,1759969832073,-370.79582791,0.0002441,2]
[390119729,1759969832082,-953.504098,0.00024411,2]
[390119731,1759969832092,-708.866839,0.00024411,2]
[390119733,1759969832102,-159.426704,0.00024411,2]
[390119735,1759969832111,-153.01,0.00024436,2]
[390119738,1759969832120,-953.504098,0.00024657,2]
[390119739,1759969832131,-708.866839,0.00024657,2]
[390119742,1759969832141,-250.0,0.00024784,2]
[390119743,1759969832151,-248.17094859,0.00024795,2]
[390119746,1759969832161,-159.39,0.00024822,2]
[390119748,1759969832171,-419.15,0.00024894,2]
[390119750,1759969832181,-953.504098,0.00024904,7]
[390119752,1759969832190,-708.866839,0.00024904,7]
[390119754,1759969832199,-159.426704,0.00024904,7]
[390119756,1759969832209,-1000.0,0.00025072,2]
[390119758,1759969832218,-150.0,0.00025129,2]
[390119760,1759969832228,-953.504098,0.00025151,7]
[390119762,1759969832236,-708.866839,0.00025151,7]
[390119763,1759969832246,-540.8336357,0.00025196,2]
[390119766,1759969832256,-526.92,0.00025196,2]
[390119767,1759969832268,-531.52,0.00025196,2]
[390119769,1759969832278,-516.66,0.00025197,2]
[390119771,1759969832287,-528.31,0.00025238,2]
[390119773,1759969832297,-276.0,0.00025249,2]
[390119775,1759969832306,-1038.493,0.00025393,10]
[390119778,1759969832316,-953.504098,0.00025397,7]
[390119780,1759969832325,-222.041799,0.00025397,7]
[390119781,1759969832335,-187.335962,0.00025397,7]
[390119784,1759969832345,-172.459345,0.00025397,7]
[390119786,1759969832354,-708.866839,0.00025397,7]
[390119788,1759969832364,-159.426704,0.00025397,7]
[390119790,1759969832374,-276.0,0.00025411,7]
[390119792,1759969832384,-176.66724253,0.00025618,2]
[390119794,1759969832393,-7965.41053268,0.00025618,2]
[390119795,1759969832403,-334.5472959,0.00025618,2]
[390119798,1759969832413,-151.0,0.00025618,2]
[390119799,1759969832422,-231.28369723,0.00025618,2]
[390119802,1759969832432,-155.749819,0.00025644,7]
[390119804,1759969832441,-163.294503,0.00025644,7]
[390119805,1759969832451,-153.49213,0.00025644,7]
[390119807,1759969832460,-953.504098,0.00025644,7]
[390119809,1759969832470,-222.041799,0.00025644,7]
[390119811,1759969832480,-187.335962,0.00025644,7]
[390119814,1759969832489,-172.459345,0.00025644,7]
[390119815,1759969832499,-708.866839,0.00025644,7]
[390119817,1759969832508,-159.426704,0.00025644,7]
[390119820,1759969832518,-168.03,0.00025647,2]
[390119822,1759969832527,-8260.13072239,0.00025673,2]
[390119823,1759969832536,-206.80912384,0.00025674,3]
[390119825,1759969832545,-500.0,0.000257,2]
[390119827,1759969832555,-2283.29720623,0.00025728,2]
[390119830,1759969832566,-648.0,0.00025737,2]
[390119831,1759969832575,-500.0,0.0002575,2]
[390119834,1759969832584,-6900.99,0.00025786,2]
[390119836,1759969832594,-29999.99,0.00025786,2]
[390119838,1759969832604,-648.0,0.00025841,2]
[390119840,1759969832614,-651.0,0.00026012,7]
[390119842,1759969832624,-648.0,0.00026061,7]
[390119844,1759969832633,-419.15,0.00026139,2]
[390119846,1759969832642,-666.91,0.00026141,2]
[390119848,1759969832651,-200.0,0.0002615,2]
[390119849,1759969832660,-648.0,0.00026169,2]
[390119852,1759969832671,-11123.2006964,0.00026191,2]
[390119854,1759969832680,-467.78451974,0.00026242,2]
[390119855,1759969832690,-1495.33119354,0.00026324,2]
[390119857,1759969832700,-1000.0,0.00026416,2]
[390119859,1759969832709,-233.0702,0.00026492,2]
[390119861,1759969832719,-1000.0,0.000265,2]
[390119862,1759969832729,-289.53277337,0.00026552,5]
[390119863,1759969832739,-1000.0,0.0002667,2]
[390119864,1759969832748,-615.93,0.00026676,2]
[390119865,1759969832758,-1000.0,0.00026742,2]
[390119866,1759969832767,-521.28,0.00026766,2]
[390119867,1759969832777,-150.0,0.00026807,2]
[390119868,1759969832787,-150.0,0.00026807,2]
[390119869,1759969832796,-1198.2,0.00026807,2]
[390119870,1759969832805,-604.0,0.00026838,2]
[390119871,1759969832815,-1307.0,0.00026838,2]
[390119872,1759969832824,-570.0,0.00026838,2]
[390119873,1759969832834,-1586.0,0.00026838,2]
[390119874,1759969832843,-815.0,0.00026838,2]
[390119875,1759969832853,-918.892,0.00026838,2]
[390119876,1759969832862,-1181.0,0.00026838,2]
[390119877,1759969832871,-2543.0,0.00026838,2]
[390119878,1759969832880,-6239.0,0.00026838,2]
[390119879,1759969832889,-3401.0,0.00026838,2]
[390119880,1759969832899,-1265.0,0.00026838,2]
[390119881,1759969832909,-200.0,0.00026843,2]
[390119882,1759969832924,-1000.0,0.00026876,2]
[390119883,1759969832934,-150.0,0.0002689,2]
[390119884,1759969832943,-150.0,0.0002689,2]
[390119885,1759969832952,-250.0,0.0002689,2]
[390119886,1759969832963,-150.0,0.0002689,2]
[390119887,1759969832972,-250.0,0.0002689,2]
[390119888,1759969832981,-150.0,0.0002689,2]
[390119889,1759969832992,-250.0,0.0002689,2]
[390119890,1759969833001,-150.0,0.0002689,2]
[390119891,1759969833010,-150.0,0.0002689,2]
[390119892,1759969833019,-150.0,0.0002689,2]
[390119893,1759969833028,-1093.33,0.0002689,2]
[390119894,1759969833038,-150.0,0.0002689,2]
[390119895,1759969833047,-150.0,0.0002689,2]
[390119896,1759969833056,-150.0,0.0002689,2]
[390119897,1759969833066,-150.0,0.0002689,2]
[390119898,1759969833075,-150.0,0.0002689,2]
[390119899,1759969833085,-200.0,0.0002689,2]
[390119900,1759969833094,-150.0,0.0002689,2]
[390119901,1759969833105,-150.0,0.0002689,2]
[390119902,1759969833114,-150.0,0.0002689,2]
[390119903,1759969833124,-150.0,0.0002689,2]
[390119904,1759969833133,-500.0,0.0002689,2]
[390119905,1759969833151,-150.0,0.0002689,2]
[390119906,1759969833161,-150.0,0.0002689,2]
[390119907,1759969833170,-150.0,0.0002689,2]
[390119908,1759969833179,-203.0,0.0002689,2]
[390119909,1759969833189,-500.0,0.0002689,2]
[390119910,1759969833198,-150.0,0.0002689,2]
[390119911,1759969833208,-500.0,0.0002689,2]
[390119912,1759969833219,-150.0,0.0002689,2]
[390119913,1759969833228,-200.0,0.0002689,2]
[390119914,1759969833238,-500.0,0.0002689,2]
[390119915,1759969833248,-500.0,0.000269,9]
[390119916,1759969833258,-209.61582406,0.000269,2]
[390119917,1759969833268,-1000.0,0.000269,2]
[390119918,1759969833277,-1425.0,0.00026906,2]
[390119919,1759969833286,-531.86,0.00026917,2]
[390119920,1759969833296,-648.0,0.00026921,7]
[390119921,1759969833305,-530.62,0.00026935,2]
[390119922,1759969833314,-1000.0,0.00026946,2]
[390119923,1759969833324,-240.67,0.00026948,2]
[390119924,1759969833333,-5489.34531876,0.00026951,2]
[390119925,1759969833343,-500.0,0.00026952,2]
[390119926,1759969833352,-172.59441196,0.00026953,2]
[390119927,1759969833361,-304.2757,0.00026954,2]
[390119928,1759969833371,-5000.0,0.00026954,2]
[390119929,1759969833381,-16667.056506,0.00026958,2]
[390119930,1759969833390,-10654.8659176,0.00026958,2]
[390119931,1759969833399,-151.0,0.00026958,7]
[390119932,1759969833408,-202.898096,0.00026958,7]
[390119933,1759969833418,-151.0,0.00026958,7]
[390119934,1759969833428,-151.0,0.00026958,7]
[390119935,1759969833438,-151.0,0.00026958,7]
[390119936,1759969833447,-151.0,0.00026958,7]
[390119937,1759969833457,-151.0,0.00026958,2]
[390119938,1759969833466,-166.78369,0.00026958,7]
[390119939,1759969833476,-151.0,0.00026958,7]
[390119940,1759969833486,-151.0,0.00026958,7]
[390119941,1759969833495,-151.0,0.00026958,7]
[390119942,1759969833506,-151.0,0.00026958,7]
[390119943,1759969833515,-151.0,0.00026958,7]
[390119944,1759969833525,-151.0,0.00026958,7]
[390119945,1759969833535,-151.0,0.00026958,7]
[390119946,1759969833544,-151.0,0.00026958,7]
[390119947,1759969833553,-151.0,0.00026958,7]
[390119948,1759969833563,-151.0,0.00026958,7]
[390119949,1759969833572,-151.0,0.00026958,7]
[390119950,1759969833582,-151.0,0.00026966,2]
[390119951,1759969833591,-500.0,0.00026976,2]
[390119952,1759969833601,-500.0,0.00026976,2]
[390119953,1759969833611,-500.0,0.00026976,2]
[390119954,1759969833620,-500.0,0.00026976,2]
[390119955,1759969833630,-500.0,0.00026976,2]
[390119956,1759969833641,-500.0,0.00026976,2]
[390119957,1759969833651,-500.0,0.00026976,2]
[390119958,1759969833661,-500.0,0.00026976,2]
[390119959,1759969833671,-504.6,0.00026976,2]
[390119960,1759969833681,-500.0,0.00026976,2]
[390119961,1759969833691,-854.8,0.00026976,2]
[390119962,1759969833882,-500.0,0.00026976,2]
[390119963,1759969833892,-500.0,0.00026976,2]
[390119964,1759969833901,-500.0,0.00026976,2]
[390119965,1759969833911,-500.0,0.00026976,2]
[390119966,1759969833927,-500.0,0.00026976,2]
[390119967,1759969833936,-500.0,0.00026976,2]
[390119968,1759969833945,-500.0,0.00026976,2]
[390119969,1759969833955,-500.0,0.00026976,2]
[390119970,1759969833966,-500.0,0.00026976,2]
[390119971,1759969833976,-500.0,0.00026976,2]
[390119972,1759969833985,-500.0,0.00026976,2]
[390119973,1759969833995,-500.0,0.00026976,2]
[390119974,1759969834004,-500.0,0.00026976,2]
[390119975,1759969834013,-500.0,0.00026976,2]
[390119976,1759969834022,-500.0,0.00026976,2]
[390119977,1759969834031,-500.0,0.00026976,2]
[390119978,1759969834041,-242.62357453,0.00026976,2]
[390119979,1759969834050,-500.0,0.00026976,2]
[390119980,1759969834058,-500.0,0.00026976,2]
[390119981,1759969834068,-500.0,0.00026976,2]
[390119982,1759969834078,-500.0,0.00026976,2]
[390119983,1759969834089,-301.64416261,0.00026977,2]
[390119984,1759969834098,-500.0,0.00026977,2]
[390119985,1759969834108,-500.0,0.00026977,2]
[390119986,1759969834118,-500.0,0.00026977,2]
[390119987,1759969834127,-500.0,0.00026977,2]
[390119988,1759969834135,-500.0,0.00026977,2]
[390119989,1759969834144,-217.66042964,0.00026977,2]
[390119990,1759969834153,-500.0,0.00026977,2]
[390119991,1759969834162,-500.0,0.00026978,2]
[390119992,1759969834171,-500.0,0.00026978,2]
[390119993,1759969834180,-500.0,0.00026978,2]
[390119994,1759969834189,-500.0,0.00026978,2]
[390119995,1759969834198,-400.0,0.00026978,2]
[390119996,1759969834207,-500.0,0.00026978,2]
[390119997,1759969834217,-500.0,0.00026978,2]
[390119998,1759969834227,-317.6233991,0.00026978,2]
[390119999,1759969834237,-500.0,0.00026978,2]
[390120000,1759969834246,-151.0,0.00026978,7]